[Event "22nd OIBM 2018"]
[Site "Gmund am Tegernsee"]
[Date "2018.10.27"]
[Round "1"]
[White "Baeuml, Ulrich"]
[Black "Stark, Lars"]
[Result "0-1"]
[ECO "A05"]
[WhiteElo "2088"]
[BlackElo "2374"]
[Annotator "NA"]
[PlyCount "84"]
[EventDate "2018.10.27"]
[EventType "swiss"]
[EventCountry "GER"]
[SourceTitle "playchess.com"]
[Source "ChessBase"]
[SourceQuality "1"]
[TimeControl "40/5400+30:1800+30"]

1. Nf3 {[%emt 0:00:00]} Nf6 {[%emt 0:00:00]} 2. g3 {[%emt 0:00:00]} b5 {[%emt 0:00:29]} 3. Bg2 {[%emt 0:00:36]} Bb7 {[%emt 0:03:48]} 4. O-O {[%emt 0:00:17]} e6 {[%emt 0:01:26]} 5. b3 {[%emt 0:00:14]} Be7 {[%emt 0:01:38]} 6. Bb2 {[%emt 0:00:16]} O-O {[%emt 0:00:27]} 7. d3 {[%emt 0:00:51]} c5 {[%emt 0:10:18]} 8. Nbd2 {[%emt 0:00:34]} d6 {[%emt 0:01:47]} 9. e4 {[%emt 0:00:34]} Nc6 {[%emt 0:02:30]} 10. Qe2 {[%emt 0:00:56]} Nd7 {[%emt 0:02:48]} 11. a4 {[%emt 0:00:48]} b4 {[%emt 0:08:29]} 12. Nc4 {[%emt 0:01:29]} Qc7 {[%emt 0:00:58]} 13. Rfe1 {[%emt 0:01:58]} Rac8 {[%emt 0:06:04]} 14. Rad1 {[%emt 0:04:25]} Rfd8 {[%emt 0:01:43]} 15. h4 {[%emt 0:04:01]} h6 {[%emt 0:06:40]} 16. Bh3 {[%emt 0:04:51]} Bf6 {[%emt 0:04:51]} 17. Bxf6 {[%emt 0:09:27]} Nxf6 {[%emt 0:00:15]} 18. Qe3 {[%emt 0:08:15]} d5 {[%emt 0:05:07]} 19. e5 {[%emt 0:02:32]} dxc4 {[%emt 0:13:05]} 20. exf6 {[%emt 0:00:15]} Nd4 {[%emt 0:00:28]} 21. Nxd4 {[%emt 0:02:28]} cxd4 {[%emt 0:00:13]} 22. Qe2 {[%emt 0:04:05]} gxf6 {[%emt 0:00:54]} 23. dxc4 {[%emt 0:01:37]} Qc6 {[%emt 0:05:03]} 24. Kh2 {[%emt 0:00:50]} Qf3 {[%emt 0:00:06]} 25. Qxf3 {[%emt 0:01:58]} Bxf3 {[%emt 0:00:07]} 26. Rd3 {[%emt 0:00:04]} Bb7 {[%emt 0:03:33]} 27. f4 {[%emt 0:05:02]} h5 {[%emt 0:05:20]} 28. Bg2 {[%emt 0:02:28]} Rc7 {[%emt 0:00:29]} 29. Bxb7 {[%emt 0:05:05]} Rxb7 {[%emt 0:00:06]} 30. Re4 {[%emt 0:00:15]} Rbd7 {[%emt 0:00:06]} 31. Kg2 {[%emt 0:00:14]} Kg7 {[%emt 0:01:12]} 32. Kf3 {[%emt 0:03:38]} Kg6 {[%emt 0:00:53]} 33. c5 {[%emt 0:05:33]} Rd5 {[%emt 0:01:25]} 34. c6 {[%emt 0:00:30]} e5 {[%emt 0:01:19]} 35. Rd2 {[%emt 0:07:21]} Rc8 {[%emt 0:03:44]} 36. fxe5 {[%emt 0:02:27]} fxe5 {[%emt 0:00:06]} 37. g4 {[%emt 0:00:49]} Rxc6 {[%emt 0:00:35]} 38. gxh5+ {[%emt 0:01:09]} Kf5 {[%emt 0:00:26]} 39. Rg4 {[%emt 0:05:46]} Rc3+ {[%emt 0:02:12]} 40. Rd3 {[%emt 0:00:07]} Rxc2 {[%emt 0:00:35]} 41. Rg5+ {[%emt 0:32:29]} Ke6 {[%emt 0:30:06]} 42. h6 {[%emt 0:02:27]} Rd8 {[%emt 0:00:21]} 0-1

[Event "22nd OIBM 2018"]
[Site "Gmund am Tegernsee"]
[Date "2018.10.27"]
[Round "1"]
[White "Nikanova, Ekaterina"]
[Black "Forchert, Martin"]
[Result "0-1"]
[ECO "B02"]
[WhiteElo "2088"]
[BlackElo "2363"]
[Annotator "NA"]
[PlyCount "91"]
[EventDate "2018.10.27"]
[EventType "swiss"]
[EventCountry "GER"]
[SourceTitle "playchess.com"]
[Source "ChessBase"]
[SourceQuality "1"]
[TimeControl "40/5400+30:1800+30"]

1. e4 Nf6 {[%emt 0:00:00]} 2. e5 {[%emt 0:00:30]} Nd5 {[%emt 0:00:30]} 3. c4 {[%emt 0:00:30]} Nb6 {[%emt 0:00:30]} 4. c5 {[%emt 0:00:30]} Nd5 {[%emt 0:00:30]} 5. Nc3 {[%emt 0:00:30]} c6 {[%emt 0:00:30]} 6. Qb3 {[%emt 0:03:32]} Qc7 {[%emt 0:17:34]} 7. Nf3 {[%emt 0:06:09]} b6 {[%emt 0:05:59]} 8. d4 {[%emt 0:18:21]} bxc5 {[%emt 0:01:00]} 9. Nxd5 {[%emt 0:02:43]} cxd5 {[%emt 0:00:05]} 10. Qxd5 {[%emt 0:01:45]} Nc6 {[%emt 0:07:07]} 11. Ng5 {[%emt 0:16:03]} e6 {[%emt 0:03:40]} 12. Qf3 {[%emt 0:00:03]} d5 {[%emt 0:02:43]} 13. exd6 {[%emt 0:02:23]} Bxd6 {[%emt 0:00:19]} 14. Bb5 {[%emt 0:06:53]} Bb7 {[%emt 0:00:40]} 15. O-O {[%emt 0:04:16]} O-O {[%emt 0:00:55]} 16. Qd3 {[%emt 0:04:24]} g6 {[%emt 0:00:47]} 17. Qh3 {[%emt 0:00:29]} h5 {[%emt 0:00:11]} 18. dxc5 {[%emt 0:09:47]} Bxc5 {[%emt 0:04:24]} 19. Be3 {[%emt 0:04:20]} Bxe3 {[%emt 0:02:20]} 20. Qxe3 {[%emt 0:00:31]} Qe5 {[%emt 0:06:23]} 21. Qxe5 {[%emt 0:01:45]} Nxe5 {[%emt 0:00:08]} 22. Rac1 Rac8 23. Ra1 {[%emt 0:04:10]} Bd5 {[%emt 0:05:19]} 24. b3 {[%emt 0:02:13]} Rb8 {[%emt 0:06:10]} 25. f4 {[%emt 0:02:15]} Rxb5 {[%emt 0:07:23]} 26. fxe5 {[%emt 0:00:01]} Rb7 {[%emt 0:00:13]} 27. Rf4 {[%emt 0:01:09]} Rd8 {[%emt 0:00:45]} 28. Raf1 {[%emt 0:01:03]} Rdd7 {[%emt 0:00:15]} 29. Ne4 {[%emt 0:02:06]} Bxe4 {[%emt 0:00:26]} 30. Rxe4 {[%emt 0:00:00]} Rb5 {[%emt 0:00:15]} 31. Rf2 {[%emt 0:01:13]} a5 {[%emt 0:00:36]} 32. h3 {[%emt 0:00:27]} g5 {[%emt 0:02:56]} 33. Kh2 {[%emt 0:05:24]} g4 {[%emt 0:03:30]} 34. h4 {[%emt 0:00:30]} Kg7 {[%emt 0:00:07]} 35. Kg3 {[%emt 0:00:40]} Kg6 {[%emt 0:00:05]} 36. Kf4 {[%emt 0:00:27]} Rdd5 {[%emt 0:01:50]} 37. Rc2 Rd3 {[%emt 0:03:50]} 38. Rec4 {[%emt 0:00:58]} f5 {[%emt 0:00:13]} 39. Re2 {[%emt 0:00:36]} Rbd5 {[%emt 0:00:59]} 40. g3 {[%emt 0:00:30]} R5d4+ {[%emt 0:00:30]} 41. Rxd4 {[%emt 0:04:29]} Rxd4+ 42. Ke3 {[%emt 0:00:14]} Re4+ {[%emt 0:04:22]} 43. Kd3 {[%emt 0:00:30]} Rxe2 {[%emt 0:00:47]} 44. Kxe2 {[%emt 0:00:04]} f4 {[%emt 0:00:06]} 45. Kd3 {[%emt 0:08:58]} Kf5 {[%emt 0:00:06]} 46. Kd4 {[%emt 0:00:54]} 0-1

[Event "22nd OIBM 2018"]
[Site "Gmund am Tegernsee"]
[Date "2018.10.27"]
[Round "1"]
[White "Pasti, Aron"]
[Black "Bernabeu Lopez, Carlos Javier"]
[Result "0-1"]
[ECO "C70"]
[WhiteElo "2085"]
[BlackElo "2353"]
[Annotator "NA"]
[PlyCount "88"]
[EventDate "2018.10.27"]
[EventType "swiss"]
[EventCountry "GER"]
[SourceTitle "playchess.com"]
[Source "ChessBase"]
[SourceQuality "1"]
[TimeControl "40/5400+30:1800+30"]

1. e4 {[%emt 0:00:00]} e5 {[%emt 0:00:00]} 2. Nf3 {[%emt 0:00:00]} Nc6 {[%emt 0:00:00]} 3. Bb5 {[%emt 0:00:00]} a6 {[%emt 0:00:00]} 4. Ba4 {[%emt 0:00:00]} Nge7 {[%emt 0:00:00]} 5. c3 {[%emt 0:00:00]} g6 {[%emt 0:00:00]} 6. d4 {[%emt 0:00:07]} exd4 {[%emt 0:00:02]} 7. cxd4 {[%emt 0:00:04]} b5 {[%emt 0:00:03]} 8. Bc2 {[%emt 0:01:21]} d5 {[%emt 0:00:06]} 9. e5 {[%emt 0:04:58]} Bg4 {[%emt 0:02:00]} 10. Be3 {[%emt 0:00:53]} Nf5 {[%emt 0:02:05]} 11. Bxf5 {[%emt 0:01:03]} Bxf5 {[%emt 0:00:10]} 12. Bg5 {[%emt 0:01:22]} Be7 {[%emt 0:00:52]} 13. Bxe7 {[%emt 0:00:05]} Qxe7 {[%emt 0:00:34]} 14. Nc3 {[%emt 0:01:49]} Rd8 {[%emt 0:00:55]} 15. O-O {[%emt 0:02:56]} Bg4 {[%emt 0:02:50]} 16. Qd2 {[%emt 0:04:47]} Bxf3 {[%emt 0:08:34]} 17. gxf3 {[%emt 0:00:06]} Qh4 {[%emt 0:00:32]} 18. Ne2 {[%emt 0:01:10]} Ne7 {[%emt 0:00:26]} 19. Rac1 {[%emt 0:02:19]} c6 {[%emt 0:02:09]} 20. Qf4 {[%emt 0:01:52]} Qxf4 {[%emt 0:02:20]} 21. Nxf4 {[%emt 0:00:03]} Kd7 {[%emt 0:04:45]} 22. b4 {[%emt 0:05:25]} a5 {[%emt 0:03:12]} 23. a3 {[%emt 0:04:20]} Ra8 {[%emt 0:00:44]} 24. Ra1 {[%emt 0:01:20]} Nf5 {[%emt 0:04:37]} 25. Ne2 {[%emt 0:00:48]} Rhb8 {[%emt 0:01:31]} 26. Rfd1 {[%emt 0:00:49]} Rb7 {[%emt 0:01:06]} 27. Kf1 {[%emt 0:15:35]} Rba7 {[%emt 0:02:15]} 28. Rab1 {[%emt 0:00:08]} axb4 {[%emt 0:00:16]} 29. axb4 {[%emt 0:00:05]} Ra2 {[%emt 0:01:19]} 30. h3 {[%emt 0:08:32]} Nh4 {[%emt 0:04:19]} 31. f4 {[%emt 0:00:50]} Nf3 {[%emt 0:03:40]} 32. Kg2 {[%emt 0:07:56]} Rxe2 {[%emt 0:06:41]} 33. Kxf3 {[%emt 0:00:04]} Raa2 {[%emt 0:00:12]} 34. Rf1 {[%emt 0:00:03]} Red2 {[%emt 0:01:50]} 35. Ke3 {[%emt 0:00:15]} Rdc2 {[%emt 0:00:13]} 36. Rb3 {[%emt 0:00:55]} Ke6 {[%emt 0:00:19]} 37. Kf3 {[%emt 0:01:10]} h5 {[%emt 0:00:37]} 38. Ke3 {[%emt 0:00:12]} Rab2 {[%emt 0:01:34]} 39. Rb1 {[%emt 0:01:22]} Re2+ {[%emt 0:00:30]} 40. Kd3 {[%emt 0:00:04]} Rbd2+ {[%emt 0:00:34]} 41. Kc3 {[%emt 0:30:03]} Rxf2 {[%emt 0:30:21]} 42. Ra3 {[%emt 0:00:40]} Rc2+ {[%emt 0:02:26]} 43. Kd3 {[%emt 0:00:05]} Rfd2+ {[%emt 0:00:48]} 44. Ke3 {[%emt 0:00:05]} Rh2 {[%emt 0:00:04]} 0-1

[Event "22nd OIBM 2018"]
[Site "Gmund am Tegernsee"]
[Date "2018.10.28"]
[Round "2"]
[White "Fier, Alexandr"]
[Black "Hofmann, Lorenz"]
[Result "*"]
[ECO "B12"]
[WhiteElo "2558"]
[BlackElo "1995"]
[Annotator "ChessBase"]
[PlyCount "37"]
[EventDate "2018.10.27"]
[EventType "swiss"]
[EventCountry "GER"]
[SourceTitle "playchess.com"]
[Source "ChessBase"]
[SourceQuality "1"]
[TimeControl "40/5400+30:1800+30"]

1. e4 {[%emt 0:00:00]} c6 {[%emt 0:00:00]} 2. d4 {[%emt 0:00:00]} d5 {[%emt 0:00:00]} 3. e5 {[%emt 0:00:00]} c5 {[%emt 0:00:00]} 4. dxc5 {[%emt 0:00:00]} Nc6 {[%emt 0:00:00]} 5. a3 {[%emt 0:00:00]} Nxe5 {[%emt 0:12:40]} 6. b4 {[%emt 0:00:10]} Nf6 {[%emt 0:01:09]} 7. Bb2 {[%emt 0:02:11]} Ng6 {[%emt 0:03:36]} 8. Nf3 {[%emt 0:00:48]} e6 {[%emt 0:02:21]} 9. c4 {[%emt 0:00:26]} Be7 {[%emt 0:03:12]} 10. cxd5 {[%emt 0:01:22]} Qxd5 {[%emt 0:00:07]} 11. Bb5+ {[%emt 0:02:30]} Bd7 {[%emt 0:01:44]} 12. Qxd5 {[%emt 0:00:35]} exd5 {[%emt 0:00:14]} 13. Bxd7+ {[%emt 0:00:05]} Kxd7 {[%emt 0:00:16]} 14. Nc3 {[%emt 0:00:04]} Rhd8 {[%emt 0:11:45]} 15. O-O {[%emt 0:03:05]} Ke8 {[%emt 0:05:15]} 16. Rad1 {[%emt 0:00:20]} Kf8 {[%emt 0:01:43]} 17. Rd4 {[%emt 0:00:25]} Rd7 {[%emt 0:01:15]} 18. Rfd1 {[%emt 0:00:05]} Rad8 {[%emt 0:00:27]} 19. Nb5 {[%emt 0:00:05]} *

[Event "22nd OIBM 2018"]
[Site "Gmund am Tegernsee"]
[Date "2018.10.28"]
[Round "2"]
[White "Jarmula, Lukasz"]
[Black "Leeb, Simon"]
[Result "1-0"]
[ECO "B10"]
[WhiteElo "2492"]
[BlackElo "2203"]
[Annotator "RC"]
[PlyCount "59"]
[EventDate "2018.10.27"]
[EventType "swiss"]
[EventCountry "GER"]
[SourceTitle "playchess.com"]
[Source "ChessBase"]
[SourceQuality "1"]
[TimeControl "40/5400+30:1800+30"]

1. e4 {[%emt 0:00:00]} c6 {[%emt 0:00:00]} 2. Nc3 {[%emt 0:00:00]} d5 {[%emt 0:00:55]} 3. Nf3 {[%emt 0:00:00]} Nf6 {[%emt 0:00:10]} 4. e5 {[%emt 0:00:00]} Ne4 {[%emt 0:00:06]} 5. Nb1 {[%emt 0:00:00]} Bg4 {[%emt 0:13:54]} 6. Be2 {[%emt 0:01:35]} Nd7 {[%emt 0:01:28]} 7. d3 {[%emt 0:01:23]} Nec5 {[%emt 0:03:08]} 8. d4 {[%emt 0:00:15]} Ne6 {[%emt 0:02:51]} 9. O-O {[%emt 0:00:56]} c5 {[%emt 0:07:11]} 10. dxc5 {[%emt 0:04:31]} Nc7 {[%emt 0:00:20]} 11. Nd4 {[%emt 0:16:37]} Bxe2 {[%emt 0:02:36]} 12. Qxe2 {[%emt 0:00:08]} Nxc5 {[%emt 0:00:33]} 13. b4 {[%emt 0:04:25]} N5e6 {[%emt 0:02:24]} 14. Nxe6 {[%emt 0:02:46]} Nxe6 {[%emt 0:01:45]} 15. Rd1 {[%emt 0:01:23]} Nc7 {[%emt 0:02:33]} 16. c4 {[%emt 0:10:39]} e6 {[%emt 0:00:51]} 17. a3 {[%emt 0:01:03]} Qc8 {[%emt 0:07:25]} 18. Nc3 {[%emt 0:01:49]} dxc4 {[%emt 0:08:49]} 19. Bg5 {[%emt 0:02:15]} Be7 {[%emt 0:11:14]} 20. Bxe7 {[%emt 0:02:17]} Kxe7 {[%emt 0:00:08]} 21. Qxc4 {[%emt 0:00:12]} Rd8 {[%emt 0:01:30]} 22. Rxd8 {[%emt 0:11:43]} Qxd8 {[%emt 0:00:58]} 23. Rd1 {[%emt 0:00:09]} Nd5 {[%emt 0:08:56]} 24. Nxd5+ {[%emt 0:01:14]} exd5 {[%emt 0:00:03]} 25. Rxd5 {[%emt 0:00:26]} Rc8 {[%emt 0:01:03]} 26. Qh4+ {[%emt 0:00:26]} f6 {[%emt 0:00:14]} 27. exf6+ {[%emt 0:00:25]} gxf6 {[%emt 0:02:48]} 28. Qxh7+ {[%emt 0:01:27]} Ke6 {[%emt 0:00:42]} 29. Qf5+ {[%emt 0:04:52]} Ke7 {[%emt 0:00:40]} 30. g4 {[%emt 0:00:25]} 1-0

[Event "22nd OIBM 2018"]
[Site "Gmund am Tegernsee"]
[Date "2018.10.28"]
[Round "2"]
[White "Morawietz, Dieter"]
[Black "Ryzhkov, Vadim"]
[Result "1-0"]
[ECO "D85"]
[WhiteElo "2408"]
[BlackElo "2171"]
[Annotator "NA"]
[PlyCount "67"]
[EventDate "2018.10.27"]
[EventType "swiss"]
[EventCountry "GER"]
[SourceTitle "playchess.com"]
[Source "ChessBase"]
[SourceQuality "1"]
[TimeControl "40/5400+30:1800+30"]

1. d4 {[%emt 0:00:00]} Nf6 {[%emt 0:00:00]} 2. c4 {[%emt 0:00:00]} g6 {[%emt 0:00:00]} 3. Nc3 {[%emt 0:00:03]} d5 {[%emt 0:00:07]} 4. cxd5 {[%emt 0:02:03]} Nxd5 {[%emt 0:00:10]} 5. e4 {[%emt 0:00:08]} Nxc3 {[%emt 0:00:14]} 6. bxc3 {[%emt 0:00:04]} Bg7 {[%emt 0:00:19]} 7. Bg5 {[%emt 0:00:27]} c5 {[%emt 0:02:45]} 8. Rc1 {[%emt 0:00:10]} Qa5 {[%emt 0:04:23]} 9. Bd2 {[%emt 0:03:30]} Qxa2 {[%emt 0:08:47]} 10. d5 {[%emt 0:07:05]} O-O {[%emt 0:16:00]} 11. Bd3 {[%emt 0:16:47]} e6 {[%emt 0:07:46]} 12. c4 {[%emt 0:02:32]} Re8 {[%emt 0:07:30]} 13. Ne2 {[%emt 0:00:56]} Bd7 {[%emt 0:04:05]} 14. O-O {[%emt 0:02:20]} Qa6 {[%emt 0:06:52]} 15. Bc3 {[%emt 0:04:23]} e5 {[%emt 0:05:48]} 16. Rb1 {[%emt 0:10:57]} b6 {[%emt 0:04:12]} 17. Qd2 {[%emt 0:01:24]} Qc8 {[%emt 0:05:13]} 18. f4 {[%emt 0:00:59]} Qd8 {[%emt 0:01:40]} 19. Rf2 {[%emt 0:16:06]} Qe7 {[%emt 0:03:52]} 20. Rbf1 {[%emt 0:02:01]} Rf8 {[%emt 0:00:09]} 21. Qb2 {[%emt 0:00:27]} Na6 {[%emt 0:02:36]} 22. fxe5 {[%emt 0:02:20]} Nb4 {[%emt 0:00:39]} 23. Bb1 {[%emt 0:00:20]} Bh6 {[%emt 0:03:46]} 24. Rf6 {[%emt 0:01:45]} Bg4 {[%emt 0:03:26]} 25. Nf4 {[%emt 0:03:05]} Bg7 {[%emt 0:03:23]} 26. Qf2 {[%emt 0:01:40]} Bxf6 {[%emt 0:04:32]} 27. exf6 {[%emt 0:00:08]} Qd7 {[%emt 0:00:50]} 28. Qh4 {[%emt 0:00:34]} h5 {[%emt 0:00:45]} 29. Qg5 {[%emt 0:00:38]} Kh7 {[%emt 0:00:08]} 30. Bd2 {[%emt 0:11:25]} Rh8 {[%emt 0:01:21]} 31. e5 {[%emt 0:00:24]} Bf5 {[%emt 0:01:15]} 32. e6 {[%emt 0:00:10]} fxe6 {[%emt 0:02:06]} 33. Bxf5 {[%emt 0:00:07]} exf5 {[%emt 0:00:52]} 34. Qxg6# {[%emt 0:00:06]} 1-0

[Event "22nd OIBM 2018"]
[Site "Gmund am Tegernsee"]
[Date "2018.10.28"]
[Round "2"]
[White "Miller, Eduard"]
[Black "Ammon, Tobias"]
[Result "1/2-1/2"]
[ECO "D79"]
[WhiteElo "2383"]
[BlackElo "2165"]
[Annotator "NA"]
[PlyCount "50"]
[EventDate "2018.10.27"]
[EventType "swiss"]
[EventCountry "GER"]
[SourceTitle "playchess.com"]
[Source "ChessBase"]
[SourceQuality "1"]
[TimeControl "40/5400+30:1800+30"]

1. Nf3 {[%emt 0:00:00]} Nf6 {[%emt 0:00:00]} 2. g3 {[%emt 0:00:00]} g6 {[%emt 0:00:00]} 3. Bg2 {[%emt 0:00:00]} Bg7 {[%emt 0:00:00]} 4. O-O {[%emt 0:00:00]} O-O {[%emt 0:00:07]} 5. d4 {[%emt 0:00:00]} d5 {[%emt 0:00:09]} 6. c4 {[%emt 0:00:04]} c6 {[%emt 0:00:09]} 7. cxd5 {[%emt 0:00:08]} cxd5 {[%emt 0:00:13]} 8. Nc3 {[%emt 0:00:06]} Ne4 {[%emt 0:02:24]} 9. Nd2 {[%emt 0:00:07]} Nxc3 {[%emt 0:16:25]} 10. bxc3 {[%emt 0:05:47]} Nc6 {[%emt 0:00:12]} 11. e4 {[%emt 0:00:07]} e6 {[%emt 0:16:36]} 12. exd5 {[%emt 0:04:46]} exd5 {[%emt 0:00:05]} 13. Qb3 {[%emt 0:00:05]} Be6 {[%emt 0:00:14]} 14. Qxb7 {[%emt 0:00:24]} Qb6 {[%emt 0:05:25]} 15. Qxb6 {[%emt 0:07:26]} axb6 {[%emt 0:00:02]} 16. Re1 {[%emt 0:12:34]} Rfc8 {[%emt 0:04:12]} 17. Nb3 {[%emt 0:11:46]} Na5 {[%emt 0:01:40]} 18. Nxa5 {[%emt 0:00:39]} Rxa5 {[%emt 0:00:13]} 19. Bd2 {[%emt 0:11:46]} Rca8 {[%emt 0:06:56]} 20. Reb1 {[%emt 0:00:52]} Rxa2 {[%emt 0:01:36]} 21. Rxa2 {[%emt 0:00:28]} Rxa2 {[%emt 0:00:05]} 22. Be1 {[%emt 0:00:59]} Bf5 {[%emt 0:03:07]} 23. Rd1 {[%emt 0:02:12]} Be6 {[%emt 0:02:18]} 24. Rb1 {[%emt 0:06:21]} Bf5 {[%emt 0:00:34]} 25. Rd1 {[%emt 0:00:45]} Be6 {[%emt 0:00:20]} 1/2-1/2

[Event "22nd OIBM 2018"]
[Site "Gmund am Tegernsee"]
[Date "2018.10.28"]
[Round "2"]
[White "Forchert, Martin"]
[Black "Juergens, Klaus"]
[Result "1-0"]
[ECO "B30"]
[WhiteElo "2363"]
[BlackElo "2149"]
[Annotator "NA"]
[PlyCount "67"]
[EventDate "2018.10.27"]
[EventType "swiss"]
[EventCountry "GER"]
[SourceTitle "playchess.com"]
[Source "ChessBase"]
[SourceQuality "1"]
[TimeControl "40/5400+30:1800+30"]

1. e4 {[%emt 0:00:00]} c5 {[%emt 0:00:00]} 2. Nf3 {[%emt 0:00:00]} Nc6 {[%emt 0:00:00]} 3. Bb5 {[%emt 0:00:00]} e6 {[%emt 0:00:10]} 4. Bxc6 {[%emt 0:00:00]} bxc6 {[%emt 0:00:09]} 5. b3 {[%emt 0:00:10]} Ne7 {[%emt 0:01:48]} 6. Bb2 {[%emt 0:02:49]} d6 {[%emt 0:03:44]} 7. e5 {[%emt 0:02:38]} Ng6 {[%emt 0:02:57]} 8. O-O {[%emt 0:05:17]} f6 {[%emt 0:17:54]} 9. exd6 {[%emt 0:08:37]} Bxd6 {[%emt 0:00:31]} 10. Nc3 {[%emt 0:04:57]} O-O {[%emt 0:03:33]} 11. d3 {[%emt 0:01:48]} e5 {[%emt 0:05:39]} 12. Nd2 {[%emt 0:03:02]} Nf4 {[%emt 0:15:16]} 13. Re1 {[%emt 0:04:18]} Bf5 {[%emt 0:10:40]} 14. Nde4 {[%emt 0:11:23]} Ne6 {[%emt 0:04:49]} 15. Nxd6 {[%emt 0:02:25]} Qxd6 {[%emt 0:00:08]} 16. Ne4 {[%emt 0:07:10]} Bxe4 {[%emt 0:04:14]} 17. Rxe4 {[%emt 0:00:07]} Nd4 {[%emt 0:01:06]} 18. Qd2 {[%emt 0:06:14]} f5 {[%emt 0:02:05]} 19. Ree1 {[%emt 0:00:06]} Rae8 {[%emt 0:01:15]} 20. Qc3 {[%emt 0:04:45]} Qd5 {[%emt 0:05:07]} 21. Rac1 {[%emt 0:12:41]} Rf6 {[%emt 0:04:47]} 22. Qc4 {[%emt 0:01:08]} Rg6 {[%emt 0:02:46]} 23. Kf1 {[%emt 0:03:24]} Ree6 {[%emt 0:02:15]} 24. Qxd5 {[%emt 0:00:48]} cxd5 {[%emt 0:00:21]} 25. c4 {[%emt 0:01:43]} Ra6 {[%emt 0:04:49]} 26. Rxe5 {[%emt 0:01:29]} dxc4 {[%emt 0:02:15]} 27. Rxc5 {[%emt 0:03:27]} Ne6 {[%emt 0:00:53]} 28. Rxf5 {[%emt 0:01:58]} Rxa2 {[%emt 0:00:50]} 29. Rxc4 {[%emt 0:00:46]} h6 {[%emt 0:00:17]} 30. Rc2 {[%emt 0:00:45]} Rg5 {[%emt 0:01:59]} 31. Rxg5 {[%emt 0:01:31]} hxg5 {[%emt 0:00:13]} 32. g3 {[%emt 0:02:23]} Kh7 {[%emt 0:00:18]} 33. Re2 {[%emt 0:00:11]} Nc5 {[%emt 0:00:42]} 34. Bd4 {[%emt 0:00:09]} 1-0

[Event "22nd OIBM 2018"]
[Site "Gmund am Tegernsee"]
[Date "2018.10.28"]
[Round "2"]
[White "Bernabeu Lopez, Carlos Javier"]
[Black "Hoppe, Thilo"]
[Result "1-0"]
[ECO "D71"]
[WhiteElo "2353"]
[BlackElo "2079"]
[Annotator "NA RC"]
[PlyCount "103"]
[EventDate "2018.10.27"]
[EventType "swiss"]
[EventCountry "GER"]
[SourceTitle "playchess.com"]
[Source "ChessBase"]
[SourceQuality "1"]
[TimeControl "40/5400+30:1800+30"]

1. d4 {[%emt 0:00:00]} Nf6 {[%emt 0:00:10]} 2. c4 {[%emt 0:00:00]} g6 {[%emt 0:00:35]} 3. g3 {[%emt 0:00:00]} Bg7 {[%emt 0:00:33]} 4. Bg2 {[%emt 0:00:00]} d6 {[%emt 0:00:40]} 5. Nf3 {[%emt 0:00:02]} O-O {[%emt 0:00:18]} 6. O-O {[%emt 0:00:05]} Nc6 {[%emt 0:00:27]} 7. d5 {[%emt 0:01:43]} Na5 {[%emt 0:03:15]} 8. Nbd2 {[%emt 0:04:36]} c5 {[%emt 0:03:16]} 9. dxc6 {[%emt 0:01:21]} Nxc6 {[%emt 0:00:48]} 10. Nb1 {[%emt 0:07:16]} Be6 {[%emt 0:09:04]} 11. Na3 {[%emt 0:00:58]} h6 {[%emt 0:02:09]} 12. Be3 {[%emt 0:05:19]} Ng4 {[%emt 0:02:54]} 13. Bd4 {[%emt 0:04:13]} Nxd4 {[%emt 0:02:31]} 14. Nxd4 {[%emt 0:03:28]} Bc8 {[%emt 0:04:16]} 15. e3 {[%emt 0:01:59]} Qb6 {[%emt 0:06:52]} 16. Rb1 {[%emt 0:01:20]} Ne5 {[%emt 0:05:32]} 17. Qd2 {[%emt 0:05:58]} Nc6 {[%emt 0:04:55]} 18. Nac2 {[%emt 0:00:41]} Nxd4 {[%emt 0:07:40]} 19. Nxd4 {[%emt 0:00:17]} a5 {[%emt 0:02:14]} 20. a4 {[%emt 0:03:25]} Qb4 {[%emt 0:13:20]} 21. Qxb4 {[%emt 0:00:20]} axb4 {[%emt 0:00:01]} 22. b3 {[%emt 0:00:10]} Ra7 {[%emt 0:03:31]} 23. Nb5 {[%emt 0:01:24]} Ra5 {[%emt 0:01:01]} 24. Nc7 {[%emt 0:09:03]} Bf5 {[%emt 0:04:23]} 25. Rbc1 {[%emt 0:00:57]} Bb2 {[%emt 0:01:49]} 26. Rcd1 {[%emt 0:00:39]} Ba3 {[%emt 0:04:33]} 27. Rd2 {[%emt 0:00:16]} Bd7 {[%emt 0:00:46]} 28. Nb5 {[%emt 0:07:28]} Bxb5 {[%emt 0:01:06]} 29. cxb5 {[%emt 0:00:22]} b6 {[%emt 0:00:27]} 30. Rc2 {[%emt 0:00:03]} Ra7 {[%emt 0:00:22]} 31. Rd1 {[%emt 0:00:23]} Rb8 {[%emt 0:00:34]} 32. Rdd2 {[%emt 0:00:35]} Kf8 {[%emt 0:00:37]} 33. Rc6 {[%emt 0:00:14]} Ke8 {[%emt 0:02:13]} 34. Rdc2 {[%emt 0:00:23]} Rd7 {[%emt 0:05:43]} 35. Rc8+ {[%emt 0:02:17]} Rd8 {[%emt 0:00:08]} 36. R8c7 {[%emt 0:04:50]} d5 {[%emt 0:04:29]} 37. Ra7 {[%emt 0:00:28]} Rd7 {[%emt 0:01:35]} 38. Rxd7 {[%emt 0:00:06]} Kxd7 {[%emt 0:00:01]} 39. Bxd5 {[%emt 0:00:10]} e6 {[%emt 0:00:51]} 40. Bc6+ {[%emt 0:00:26]} Ke7 {[%emt 0:00:26]} 41. Be4 {[%emt 0:30:39]} Kd7 {[%emt 0:30:53]} 42. Kf1 {[%emt 0:02:37]} f5 {[%emt 0:00:00]} 43. Bc6+ {[%emt 0:00:00]} Ke7 {[%emt 0:00:00]} 44. Ke2 {[%emt 0:00:00]} g5 {[%emt 0:00:00]} 45. h3 {[%emt 0:00:00]} Kd6 {[%emt 0:00:00]} 46. Rd2+ {[%emt 0:00:00]} Ke7 {[%emt 0:00:00]} 47. Kd1 {[%emt 0:00:00]} Rd8 {[%emt 0:00:00]} 48. Rxd8 {[%emt 0:00:00]} Kxd8 {[%emt 0:00:00]} 49. Kc2 {[%emt 0:00:00]} Kc7 {[%emt 0:00:00]} 50. f4 {[%emt 0:00:00]} gxf4 {[%emt 0:00:24]} 51. exf4 {[%emt 0:00:00]} Kd6 {[%emt 0:00:39]} 52. g4 {[%emt 0:00:00] Kd5} 1-0